bitfinex-derivatives/quotes_BTCF0:USTF0_20250806
["timestamp","ask_amount","ask_price","bid_price","bid_amount"]
[1754441289181,2.6600801,113900.0,113890.0,0.5589055]
[1754441289484,2.96497279,113900.0,113890.0,0.5589055]
[1754441293386,1.8628,113900.0,113890.0,0.5449855]
[1754441293592,2.96453279,113900.0,113890.0,0.5589055]
[1754441293888,2.78893269,113900.0,113890.0,0.5589055]
[1754441294680,2.78893269,113900.0,113890.0,0.5599055]
[1754441294884,2.78693269,113900.0,113890.0,0.5599055]
[1754441296794,0.3608,113900.0,113890.0,0.5599055]
[1754441296988,0.98132,113900.0,113890.0,0.5599055]
[1754441297585,3.08406051,113910.0,113900.0,0.29599]
[1754441297791,3.70458051,113910.0,113900.0,0.29599]
[1754441297990,4.0094732,113910.0,113900.0,0.29599]
[1754441298186,2.3500179,113910.0,113900.0,0.29599]
[1754441298388,2.9712579,113910.0,113900.0,0.29599]
[1754441298590,2.7956732,113910.0,113900.0,0.29599]
[1754441298892,2.49078051,113910.0,113900.0,0.29599]
[1754441299094,2.7956732,113910.0,113900.0,0.29599]
[1754441299495,2.9712579,113910.0,113900.0,0.29599]
[1754441299794,2.3500179,113910.0,113900.0,0.29599]
[1754441299989,2.9755779,113910.0,113900.0,0.29599]
[1754441300189,2.1744332,113910.0,113900.0,0.55889]
[1754441300394,2.7996732,113910.0,113900.0,0.55989]
[1754441300783,2.48604,113910.0,113900.0,0.55989]
[1754441301383,2.48604,113910.0,113900.0,0.71786829]
[1754441302896,2.48524,113910.0,113900.0,0.71786829]
[1754441304999,2.48488,113910.0,113900.0,0.71786829]
[1754441305199,2.78977269,113910.0,113900.0,0.71786829]
[1754441306697,2.16569269,113910.0,113900.0,0.71786829]
[1754441306903,2.7985006,113910.0,113900.0,0.71786829]
[1754441307103,2.78965269,113910.0,113900.0,0.71786829]
[1754441308402,2.34127729,113910.0,113900.0,0.62155829]
[1754441308595,2.96479729,113910.0,113900.0,0.62155829]
[1754441308905,2.96479729,113910.0,113900.0,0.46358]
[1754441309104,2.78921269,113910.0,113900.0,0.46358]
[1754441310806,2.79815126,113910.0,113900.0,0.46358]
[1754441311907,2.78921269,113910.0,113900.0,0.55828]
[1754441313214,2.79802157,113910.0,113900.0,0.4395]
[1754441313511,2.79802157,113910.0,113900.0,0.46442]
[1754441314006,2.49312888,113910.0,113900.0,0.46442]
[1754441314200,2.79802157,113910.0,113900.0,0.46442]
[1754441316105,2.97360627,113910.0,113900.0,0.46442]
[1754441316504,2.97360627,113910.0,113900.0,0.2639]
[1754441316902,2.97360627,113910.0,113900.0,0.001]
[1754441317708,0.1756001,113900.0,113890.0,0.5263046]
[1754441317908,1.46597279,113900.0,113890.0,0.5263046]
[1754441318407,1.46597279,113900.0,113890.0,0.5512246]
[1754441318613,1.46597279,113900.0,113890.0,0.5073217]
[1754441318802,1.46597279,113900.0,113890.0,0.4385012]
[1754441319003,1.46797279,113900.0,113890.0,0.4385012]
[1754441319502,1.46797279,113900.0,113890.0,0.2629]
[1754441319705,0.1756155,113890.0,113880.0,0.5512549]
[1754441320009,0.84130819,113890.0,113880.0,0.5512549]
[1754441320413,0.84130819,113890.0,113880.0,0.4634403]
[1754441320600,0.84130819,113890.0,113880.0,0.2629]
[1754441320800,0.84130819,113890.0,113880.0,0.4385309]
[1754441321214,0.84130819,113890.0,113880.0,0.4634509]
[1754441321215,0.5364155,113890.0,113880.0,0.4634509]
[1754441321514,0.84130819,113890.0,113880.0,0.4644509]
[1754441322313,0.84130819,113890.0,113880.0,0.001]
[1754441322817,1.14620088,113890.0,113880.0,0.001]
[1754441324504,0.1756463,113870.0,113860.0,0.379024]
[1754441324706,1.82857899,113870.0,113860.0,0.3351088]
[1754441325112,1.82857899,113870.0,113860.0,0.2911936]
[1754441325310,0.1756618,113860.0,113850.0,0.3323423]
[1754441325510,0.3608,113860.0,113850.0,0.2445039]
[1754441325709,0.84135439,113860.0,113850.0,0.2445039]
[1754441326113,0.3608,113860.0,113850.0,0.2445039]
[1754441326305,0.66569269,113860.0,113850.0,0.2912139]
[1754441326505,1.29413269,113860.0,113850.0,0.3392039]
[1754441326710,0.98924,113860.0,113850.0,0.3392039]
[1754441327206,0.66569269,113860.0,113850.0,0.2195839]
[1754441327407,0.66569269,113860.0,113850.0,0.3392039]
[1754441327608,1.29397269,113860.0,113850.0,0.3412039]
[1754441327808,1.29397269,113860.0,113850.0,0.3422039]
[1754441328415,0.98908,113860.0,113850.0,0.3422039]
[1754441328617,0.66569269,113860.0,113850.0,0.3422039]
[1754441328807,1.29397269,113860.0,113850.0,0.3422039]
[1754441329013,0.98908,113860.0,113850.0,0.3422039]
[1754441330207,1.29409269,113860.0,113850.0,0.3422039]
[1754441331417,1.46975449,113860.0,113850.0,0.3422039]
[1754441332311,0.9892,113860.0,113850.0,0.3422039]
[1754441332722,1.46975449,113860.0,113850.0,0.3422039]
[1754441332922,1.1648618,113860.0,113850.0,0.3422039]
[1754441333119,1.46975449,113860.0,113850.0,0.3422039]
[1754441333705,1.1648618,113860.0,113850.0,0.3422039]
[1754441333915,1.46975449,113860.0,113850.0,0.3422039]
[1754441334715,1.46975449,113860.0,113850.0,0.6051039]
[1754441335819,1.29409269,113860.0,113850.0,0.6051039]
[1754441337518,1.29409269,113860.0,113850.0,0.5571139]
[1754441338022,1.29409269,113860.0,113850.0,0.6057939]
[1754441338218,1.29409269,113860.0,113850.0,0.5571139]
[1754441338415,1.46975449,113860.0,113850.0,0.4854839]
[1754441338620,1.46975449,113860.0,113850.0,0.5104739]
[1754441338923,1.29409269,113860.0,113850.0,0.5104739]
[1754441339123,1.29409269,113860.0,113850.0,0.6066139]
[1754441339124,0.9892,113860.0,113850.0,0.6066139]
[1754441339319,1.29409269,113860.0,113850.0,0.6066139]
[1754441340621,1.29409269,113860.0,113850.0,0.6056139]
[1754441340818,1.29409269,113860.0,113850.0,0.6046139]
[1754441341821,0.9892,113860.0,113850.0,0.6046139]
[1754441342016,1.29409269,113860.0,113850.0,0.6046139]
[1754441342618,0.3608,113860.0,113850.0,0.6046139]
[1754441342818,1.29481269,113860.0,113850.0,0.6046139]
[1754441343426,0.98992,113860.0,113850.0,0.6046139]
[1754441343921,0.62912,113860.0,113850.0,0.6046139]
[1754441344330,0.66569269,113870.0,113860.0,0.2967917]
[1754441344511,1.47025899,113870.0,113860.0,0.2967917]
[1754441345426,0.84133899,113870.0,113860.0,0.2249417]
[1754441345729,0.84133899,113870.0,113860.0,0.2006517]
[1754441345924,1.47033899,113870.0,113860.0,0.2006517]
[1754441346124,0.1756617,113860.0,113850.0,0.5513942]
[1754441346320,0.84135439,113860.0,113850.0,0.5513942]
[1754441346519,0.84135439,113860.0,113850.0,0.5264042]
[1754441346724,0.84135439,113860.0,113850.0,0.4385683]
[1754441346925,1.47387439,113860.0,113850.0,0.2629]
[1754441347121,0.1756772,113850.0,113840.0,0.1756817]
[1754441347320,0.5364772,113850.0,113840.0,0.1756817]
[1754441347526,0.84136989,113850.0,113840.0,0.1756817]
[1754441348032,0.84136989,113850.0,113840.0,0.2006717]
[1754441349027,0.84336989,113850.0,113840.0,0.2006717]
[1754441349325,0.1756926,113840.0,113830.0,0.2635509]
[1754441349534,1.47470529,113840.0,113830.0,0.2885409]
[1754441349726,1.47470529,113840.0,113830.0,0.2446139]
[1754441350029,1.36888632,113840.0,113830.0,0.2446139]
[1754441351330,1.36888632,113840.0,113830.0,0.3407539]
[1754441351928,1.36888632,113840.0,113830.0,0.3417539]
[1754441353530,0.3608,113840.0,113830.0,0.3417539]
[1754441353831,1.30105269,113840.0,113830.0,0.3417539]
[1754441354032,0.3608,113840.0,113830.0,0.3417539]
[1754441354331,0.99616,113840.0,113830.0,0.3417539]
[1754441355233,0.42985788,113850.0,113840.0,0.2968226]
[1754441355234,0.73475057,113850.0,113840.0,0.2968226]
[1754441355428,1.37035057,113850.0,113840.0,0.2968226]
[1754441356027,0.73475057,113850.0,113840.0,0.2968226]
[1754441356226,0.99648,113850.0,113840.0,0.2968226]
[1754441356930,0.3608,113850.0,113840.0,0.2968226]
[1754441357133,1.30101269,113850.0,113840.0,0.2968226]
[1754441357336,0.3608,113850.0,113840.0,0.2968226]
[1754441357533,0.63532,113850.0,113840.0,0.2968226]
[1754441357832,0.99612,113850.0,113840.0,0.2968226]
[1754441358222,0.63532,113850.0,113840.0,0.2968226]
[1754441358422,0.63532,113850.0,113840.0,0.5597226]
[1754441358624,0.63532,113850.0,113840.0,0.5617226]
[1754441358934,0.94021269,113850.0,113840.0,0.5617226]
[1754441359522,1.30101269,113850.0,113840.0,0.5617226]
[1754441359830,0.3608,113850.0,113840.0,0.56072816]
[1754441360030,1.30141269,113850.0,113840.0,0.56072816]
[1754441360233,0.66769269,113850.0,113840.0,0.56072816]
[1754441360433,1.30317269,113850.0,113840.0,0.56072816]
[1754441360624,0.99828,113850.0,113840.0,0.56072816]
[1754441360832,1.30117269,113850.0,113840.0,0.56172816]
[1754441364434,0.99628,113850.0,113840.0,0.55972816]
[1754441364642,1.30117269,113850.0,113840.0,0.56072816]
[1754441364834,1.30117269,113850.0,113840.0,0.29782816]
[1754441365235,1.30117269,113850.0,113840.0,0.29682816]
[1754441365536,1.30117269,113850.0,113840.0,0.29882816]
[1754441366241,1.47684989,113850.0,113840.0,0.25014816]
[1754441367536,1.47684989,113850.0,113840.0,0.24914816]
[1754441367732,1.47684989,113850.0,113840.0,0.24714816]
[1754441367937,1.47684989,113850.0,113840.0,0.24814816]
[1754441368240,1.47684989,113850.0,113840.0,0.20068816]
[1754441368446,1.30117269,113850.0,113840.0,0.29795816]
[1754441368745,0.99484,113850.0,113840.0,0.29795816]
[1754441368933,0.3608,113850.0,113840.0,0.29795816]
[1754441369134,0.3608,113850.0,113840.0,0.29695816]
[1754441369330,0.9946,113850.0,113840.0,0.29695816]
[1754441370042,1.47516989,113850.0,113840.0,0.29695816]
[1754441370241,0.66569269,113850.0,113840.0,0.29695816]
[1754441370533,1.29949269,113850.0,113840.0,0.29795816]
[1754441370842,1.29949269,113850.0,113840.0,0.29995816]
[1754441371044,1.29949269,113850.0,113840.0,0.30195816]
[1754441371453,1.47516989,113850.0,113840.0,0.30195816]
[1754441371653,1.47516989,113850.0,113840.0,0.30295816]
[1754441372354,1.1702772,113850.0,113840.0,0.30295816]
[1754441372658,1.47516989,113850.0,113840.0,0.30295816]
[1754441373155,0.84136989,113850.0,113840.0,0.30295816]
[1754441373355,1.47500989,113850.0,113840.0,0.30295816]
[1754441373556,1.47500989,113850.0,113840.0,0.29995816]
[1754441373756,1.47500989,113850.0,113840.0,0.29795816]
[1754441375049,1.47500989,113850.0,113840.0,0.45593645]
[1754441375757,1.47500989,113850.0,113840.0,0.20068816]
[1754441377762,1.47500989,113850.0,113840.0,0.17569816]
[1754441377964,1.47500989,113850.0,113840.0,0.19959816]
[1754441378458,1.47700989,113850.0,113840.0,0.19859816]
[1754441378664,1.47700989,113850.0,113840.0,0.17469816]
[1754441378854,1.47700989,113850.0,113840.0,0.19859816]
[1754441379255,1.47700989,113850.0,113840.0,0.46149816]
[1754441379859,1.47701019,113850.0,113840.0,0.46149816]
[1754441380065,1.47701019,113850.0,113840.0,0.43759816]
[1754441380269,1.47701019,113850.0,113840.0,0.2629]
[1754441380564,1.47701019,113850.0,113840.0,0.42087829]
[1754441381361,1.47701019,113850.0,113840.0,0.2629]
[1754441385067,0.1756929,113840.0,113830.0,0.5503473]
[1754441385267,0.84138559,113840.0,113830.0,0.5503473]
[1754441385464,0.84138559,113840.0,113830.0,0.5852873]
[1754441386766,0.84138559,113840.0,113830.0,0.6120273]
[1754441386967,0.84047897,113840.0,113830.0,0.6120273]
[1754441387469,0.84047897,113840.0,113830.0,0.6486173]
[1754441388469,0.84047897,113840.0,113830.0,0.6046903]
[1754441388865,0.84047897,113840.0,113830.0,0.2878]
[1754441389061,1.14537166,113840.0,113830.0,0.2878]
[1754441390160,1.14537166,113840.0,113830.0,0.4635083]
[1754441390663,1.14537166,113840.0,113830.0,0.5382083]
[1754441390968,0.84047897,113840.0,113830.0,0.2978783]
[1754441391360,0.84047897,113840.0,113830.0,0.12217]
[1754441391562,1.14537166,113840.0,113830.0,0.12217]
[1754441392160,1.14537166,113840.0,113830.0,0.2978783]
[1754441392462,0.84047897,113840.0,113830.0,0.2978783]
[1754441393269,1.14537166,113840.0,113830.0,0.2978783]
[1754441395775,0.84047897,113840.0,113830.0,0.2978783]
[1754441396369,0.53558628,113840.0,113830.0,0.2978783]
[1754441396573,0.84047897,113840.0,113830.0,0.2978783]
[1754441396974,1.14537166,113840.0,113830.0,0.2978783]
[1754441403280,1.50617166,113840.0,113830.0,0.2978783]
[1754441405086,0.89638628,113840.0,113830.0,0.2978783]
[1754441405279,1.50617166,113840.0,113830.0,0.2978783]
[1754441406071,1.20127897,113840.0,113830.0,0.2978783]
[1754441409276,1.02649269,113840.0,113830.0,0.2978783]
[1754441409480,1.65533269,113840.0,113830.0,0.2978783]
[1754441409680,1.35044,113840.0,113830.0,0.45585659]
[1754441409881,1.65469269,113840.0,113830.0,0.45585659]
[1754441410774,0.98876,113840.0,113830.0,0.89252368]
[1754441410970,0.62796,113840.0,113830.0,0.89252368]
[1754441411171,0.66569269,113850.0,113840.0,0.2555129]
[1754441411373,1.29365269,113850.0,113840.0,0.2938129]
[1754441411772,0.9888,113850.0,113840.0,0.2938129]
[1754441411976,0.9888,113850.0,113840.0,0.59870559]
[1754441412281,0.9888,113850.0,113840.0,0.2938129]
[1754441412982,0.628,113850.0,113840.0,0.2938129]
[1754441413191,0.628,113850.0,113840.0,0.2968129]
[1754441413678,0.628,113850.0,113840.0,0.45488217]
[1754441414184,0.8056775,113850.0,113840.0,0.45488217]
[1754441414383,0.63,113850.0,113840.0,0.45488217]
[1754441414581,0.9908,113850.0,113840.0,0.45488217]
[1754441414785,0.9888,113850.0,113840.0,0.45488217]
[1754441415089,0.99184,113850.0,113840.0,0.45788217]
[1754441415778,0.99384,113850.0,113840.0,0.45488217]
[1754441416981,0.63304,113850.0,113840.0,0.45488217]
[1754441417288,0.99384,113850.0,113840.0,0.45288217]
[1754441417683,0.99384,113850.0,113840.0,0.71578217]
[1754441418588,0.99324,113850.0,113840.0,0.71578217]
[1754441418783,0.99124,113850.0,113840.0,0.71478217]
[1754441419287,0.99124,113850.0,113840.0,0.71678217]
[1754441419790,0.99124,113850.0,113840.0,0.71578217]
[1754441420094,0.99116,113850.0,113840.0,0.71578217]
[1754441420291,0.99096,113850.0,113840.0,0.71578217]
[1754441421288,0.3608,113850.0,113840.0,0.71578217]
[1754441421492,0.99088,113850.0,113840.0,0.71578217]
[1754441421688,0.99088,113850.0,113840.0,0.5577129]
[1754441422597,0.99024,113850.0,113840.0,0.5577129]
[1754441423190,1.29513269,113850.0,113840.0,0.2948129]
[1754441423793,0.66569269,113850.0,113840.0,0.2948129]
[1754441424091,1.29713269,113850.0,113840.0,0.2948129]
[1754441426800,1.29713269,113850.0,113840.0,0.45288217]
[1754441427506,1.29701269,113850.0,113840.0,0.45288217]
[1754441428113,0.66569269,113850.0,113840.0,0.45288217]
[1754441428303,1.29701269,113850.0,113840.0,0.45288217]
[1754441429912,1.29629269,113850.0,113840.0,0.45288217]
[1754441430798,0.66569269,113850.0,113840.0,0.45288217]
[1754441431097,1.29593269,113850.0,113840.0,0.45288217]
[1754441431498,1.29593269,113850.0,113840.0,0.2948129]
[1754441432304,1.29593269,113850.0,113840.0,0.45288217]
[1754441432505,1.29593269,113850.0,113840.0,0.71578217]
[1754441433208,0.66569269,113850.0,113840.0,0.71578217]
[1754441433400,0.99068,113850.0,113840.0,0.71578217]
[1754441433607,1.47125009,113850.0,113840.0,0.59766217]
[1754441433807,1.29557269,113850.0,113840.0,0.62018217]
[1754441434009,1.29557269,113850.0,113840.0,0.71485217]
[1754441434204,0.66569269,113850.0,113840.0,0.71485217]
[1754441434411,1.29541269,113850.0,113840.0,0.71485217]
[1754441434905,0.99044,113850.0,113840.0,0.71485217]
[1754441436210,1.29533269,113850.0,113840.0,0.71485217]
[1754441437204,1.29533269,113850.0,113840.0,0.71585217]
[1754441440413,1.29533269,113850.0,113840.0,0.5577829]
[1754441441207,1.29533269,113850.0,113840.0,0.71592063]
[1754441442412,0.99044,113850.0,113840.0,0.71592063]
[1754441442714,1.29533269,113850.0,113840.0,0.71592063]
[1754441444507,1.29533269,113850.0,113840.0,0.5577829]
[1754441445211,0.99044,113850.0,113840.0,0.5577829]
[1754441445514,0.98864,113850.0,113840.0,0.5577829]
[1754441448809,0.98848,113850.0,113840.0,0.5577829]
[1754441449908,0.3608,113850.0,113840.0,0.5577829]
[1754441450119,0.98852,113850.0,113840.0,0.71592063]
[1754441451508,1.29341269,113850.0,113840.0,0.71592063]
[1754441452607,0.66569269,113850.0,113840.0,0.5577829]
[1754441452812,1.29313269,113850.0,113840.0,0.5577829]
[1754441453120,1.29313269,113850.0,113840.0,0.71593976]
[1754441455324,0.98824,113850.0,113840.0,0.71593976]
[1754441455516,1.29313269,113850.0,113840.0,0.71493976]
[1754441456110,0.66569269,113850.0,113840.0,0.71493976]
[1754441456314,1.29225269,113850.0,113840.0,0.71593976]
[1754441457222,0.66569269,113850.0,113840.0,0.71593976]
[1754441457522,1.29189269,113850.0,113840.0,0.71593976]
[1754441457911,1.46757019,113850.0,113840.0,0.62126976]
[1754441459221,1.46757019,113850.0,113840.0,0.59774976]
[1754441459618,1.46757019,113850.0,113840.0,0.4395929]
[1754441459819,1.1626775,113850.0,113840.0,0.4395929]
[1754441460019,1.46757019,113850.0,113840.0,0.4395929]
[1754441460422,1.46957019,113850.0,113840.0,0.4395929]
[1754441460929,1.1646775,113850.0,113840.0,0.4395929]
[1754441461131,1.46957019,113850.0,113840.0,0.4395929]
[1754441461428,1.46957019,113850.0,113840.0,0.4634829]
[1754441462228,1.47057019,113850.0,113840.0,0.4634829]
[1754441462622,1.29489269,113850.0,113840.0,0.4634829]
[1754441463332,1.47057009,113850.0,113840.0,0.4634829]
[1754441464826,1.29489269,113850.0,113840.0,0.5583329]
[1754441465236,1.47057009,113850.0,113840.0,0.5583329]
[1754441465942,1.47057009,113850.0,113840.0,0.5440329]
[1754441466143,1.47057009,113850.0,113840.0,0.5114529]
[1754441466444,1.47057009,113850.0,113840.0,0.4789329]
[1754441466642,1.46857009,113850.0,113840.0,0.4634829]
[1754441467341,1.47057009,113850.0,113840.0,0.4634829]
[1754441469141,1.47057009,113850.0,113840.0,0.5583329]
[1754441470646,1.46957009,113850.0,113840.0,0.5583329]
[1754441470838,1.46757009,113850.0,113840.0,0.5583329]
[1754441474251,1.46957009,113850.0,113840.0,0.5583329]
[1754441474450,0.3608,113850.0,113840.0,0.5583329]
[1754441474647,0.66569269,113850.0,113840.0,0.5583329]
[1754441474844,0.98736,113850.0,113840.0,0.86322559]
[1754441475149,1.29225269,113850.0,113840.0,0.5583329]
[1754441475550,1.29325269,113850.0,113840.0,0.5583329]
[1754441476252,1.29325269,113850.0,113840.0,0.5593329]
[1754441477142,0.98736,113850.0,113840.0,0.5603329]
[1754441477340,1.29225269,113850.0,113840.0,0.5603329]
[1754441478052,1.29225269,113850.0,113840.0,0.5593329]
[1754441478444,1.46793019,113850.0,113840.0,0.5593329]
[1754441479443,1.29225269,113850.0,113840.0,0.5593329]
[1754441479754,1.46793019,113850.0,113840.0,0.5593329]
[1754441480054,1.46793019,113850.0,113840.0,0.5603329]
[1754441480455,1.46757019,113850.0,113840.0,0.5603329]
[1754441480854,1.29189269,113850.0,113840.0,0.5603329]
[1754441481655,1.46757019,113850.0,113840.0,0.5603329]
[1754441483750,1.46757019,113850.0,113840.0,0.5593329]
[1754441484057,1.29189269,113850.0,113840.0,0.5583329]
[1754441485858,0.987,113850.0,113840.0,0.5583329]
[1754441486060,1.29189269,113850.0,113840.0,0.5583329]
[1754441486448,0.987,113850.0,113840.0,0.5583329]
[1754441487155,1.29189269,113850.0,113840.0,0.5583329]
[1754441487659,1.29189269,113850.0,113840.0,0.5593329]
[1754441487861,1.29189269,113850.0,113840.0,0.5603329]
[1754441488062,1.46757009,113850.0,113840.0,0.5603329]
[1754441489164,1.1626774,113850.0,113840.0,0.5603329]
[1754441489365,1.46757009,113850.0,113840.0,0.5593329]
[1754441490360,1.46757009,113850.0,113840.0,0.4627829]
[1754441492368,1.46757009,113850.0,113840.0,0.4617829]
[1754441492570,1.46757009,113850.0,113840.0,0.4385929]
[1754441492967,1.46857009,113850.0,113840.0,0.4385929]
[1754441493162,1.47057009,113850.0,113840.0,0.4385927]
[1754441493566,1.46857009,113850.0,113840.0,0.4385927]
[1754441493766,1.47257009,113850.0,113840.0,0.4385927]
[1754441494466,1.47057009,113850.0,113840.0,0.4385927]
[1754441494666,1.46857009,113850.0,113840.0,0.4385927]
[1754441494862,1.47057009,113850.0,113840.0,0.4385927]
[1754441495260,1.47057009,113850.0,113840.0,0.2629]
[1754441495765,1.47057009,113850.0,113840.0,0.4385928]
[1754441496472,1.47057009,113850.0,113840.0,0.2629]
[1754441497569,0.1756929,113840.0,113830.0,0.5935596]
[1754441497769,0.84138559,113840.0,113830.0,0.6863396]
[1754441497970,0.84138559,113840.0,113830.0,0.6424136]
[1754441498773,0.84138559,113840.0,113830.0,0.5264436]
[1754441499072,0.84138559,113840.0,113830.0,0.505709]
[1754441499073,1.14627828,113840.0,113830.0,0.505709]
[1754441499278,0.84138559,113840.0,113830.0,0.505709]
[1754441499766,1.14627828,113840.0,113830.0,0.505709]
[1754441499967,0.84138559,113840.0,113830.0,0.505709]
[1754441500870,0.84138559,113840.0,113830.0,0.4617852]
[1754441501075,0.84438559,113840.0,113830.0,0.4617852]
[1754441501970,1.14927828,113840.0,113830.0,0.4617983]
[1754441503079,1.14927828,113840.0,113830.0,0.28609]
[1754441503280,1.14927828,113840.0,113830.0,0.4617983]
[1754441503479,0.1757083,113830.0,113820.0,0.4618001]
[1754441503676,1.46400099,113830.0,113820.0,0.4618001]
[1754441504677,1.46400099,113830.0,113820.0,0.5545801]
[1754441504879,1.28829269,113830.0,113820.0,0.5545801]
[1754441505484,1.46400099,113830.0,113820.0,0.5545801]
[1754441505680,1.46400099,113830.0,113820.0,0.5555801]
[1754441505883,1.46400099,113830.0,113820.0,0.5565801]
[1754441507496,1.47276575,113830.0,113820.0,0.5565801]
[1754441508494,1.28801269,113830.0,113820.0,0.5565801]
[1754441508795,0.3608,113830.0,113820.0,0.5565801]
[1754441508985,0.9836,113830.0,113820.0,0.86147279]
[1754441509392,0.9836,113830.0,113820.0,0.5555801]
[1754441510096,0.6226,113830.0,113820.0,0.86047279]
[1754441510295,0.6226,113830.0,113820.0,0.86147279]
[1754441510989,0.6226,113830.0,113820.0,1.01962965]
[1754441511797,0.92921159,113850.0,113840.0,0.2929827]
[1754441511798,0.3608,113850.0,113840.0,0.2929827]
[1754441512093,0.98324,113850.0,113840.0,0.6067871]
[1754441512283,0.98324,113850.0,113840.0,0.30189441]
[1754441512783,0.98324,113850.0,113840.0,0.46005127]
[1754441512989,0.98424,113850.0,113840.0,0.45113956]
[1754441513189,1.46481019,113850.0,113840.0,0.45113956]
[1754441513891,1.28913269,113850.0,113840.0,0.45113956]
[1754441514301,0.98424,113850.0,113840.0,0.45113956]
[1754441515297,1.1599175,113850.0,113840.0,0.71403956]
[1754441516000,0.98424,113850.0,113840.0,0.5558827]
[1754441519995,0.3618,113850.0,113840.0,0.5558827]
[1754441520300,0.98408,113850.0,113840.0,0.5558827]
[1754441521000,0.3618,113850.0,113840.0,0.5558827]
[1754441521495,0.98476,113850.0,113840.0,0.5558827]
[1754441521698,0.3618,113850.0,113840.0,0.5558827]
[1754441521997,0.98476,113850.0,113840.0,0.5558827]
[1754441522290,0.3618,113850.0,113840.0,0.86077539]
[1754441522496,0.001,113850.0,113840.0,1.59251225]
[1754441522696,0.62276,113860.0,113850.0,0.2929674]
[1754441522903,0.43136946,113870.0,113860.0,0.2929519]
[1754441523095,1.05416946,113870.0,113860.0,0.2929519]
[1754441523792,0.9836,113870.0,113860.0,0.2929519]
[1754441524493,0.9856,113870.0,113860.0,0.2929519]
[1754441527388,0.3628,113870.0,113860.0,0.2929519]
[1754441527601,0.98544,113870.0,113860.0,0.2929519]
[1754441529601,0.98524,113870.0,113860.0,0.2929519]
[1754441530802,0.98324,113870.0,113860.0,0.2949519]
[1754441532404,0.3608,113870.0,113860.0,0.86274459]
[1754441532594,0.98272,113870.0,113860.0,0.86274459]
[1754441532997,0.3608,113870.0,113860.0,0.86274459]
[1754441533198,0.5893297,113870.0,113860.0,0.86274459]
[1754441533502,0.514242,113870.0,113860.0,0.86274459]
[1754441533696,0.4909932,113870.0,113860.0,0.86274459]
[1754441534005,0.4677533,113870.0,113860.0,0.86374459]
[1754441534307,0.3713947,113870.0,113860.0,0.86374459]
[1754441534508,0.3368239,113870.0,113860.0,0.86374459]
[1754441534704,0.2959696,113870.0,113860.0,0.86374459]
[1754441534900,0.98244,113880.0,113870.0,0.2223365]
[1754441535099,0.98244,113880.0,113870.0,0.2929365]
[1754441537601,0.98244,113880.0,113870.0,0.59782919]
[1754441537803,0.62164,113880.0,113870.0,0.59782919]
[1754441538106,0.62164,113880.0,113870.0,0.59882919]
[1754441539000,0.62164,113880.0,113870.0,0.86172919]
[1754441539198,0.3608,113890.0,113880.0,0.292921]
[1754441539498,0.6208,113890.0,113880.0,0.59781369]
[1754441539804,0.6208,113890.0,113880.0,0.292921]
[1754441541112,0.6208,113890.0,113880.0,0.293921]
[1754441542202,0.9816,113890.0,113880.0,0.293921]
[1754441542408,0.6208,113890.0,113880.0,0.293921]
[1754441542812,0.3608,113900.0,113890.0,0.2933457]
[1754441543016,0.98096,113900.0,113890.0,0.86113839]
[1754441543312,0.98096,113900.0,113890.0,0.5562457]
[1754441545315,0.98096,113900.0,113890.0,0.5572457]
[1754441547117,0.98096,113900.0,113890.0,0.5582457]
[1754441548014,0.98096,113900.0,113890.0,0.5572457]
[1754441548810,0.98096,113900.0,113890.0,0.5562457]
[1754441549117,0.98096,113900.0,113890.0,0.5582457]
[1754441549614,0.62016,113900.0,113890.0,0.5582457]
[1754441550620,0.98096,113900.0,113890.0,0.5582457]
[1754441550813,0.98096,113900.0,113890.0,0.5562457]
[1754441551013,0.98096,113900.0,113890.0,0.5572457]
[1754441551014,1.28585269,113900.0,113890.0,0.5572457]
[1754441551216,0.98096,113900.0,113890.0,0.5572457]
[1754441551417,1.46145279,113900.0,113890.0,0.4395157]
[1754441552819,1.28585269,113900.0,113890.0,0.4395157]
[1754441553020,1.46145279,113900.0,113890.0,0.4395157]
[1754441553419,1.46145279,113900.0,113890.0,0.4638357]
[1754441554116,1.28585269,113900.0,113890.0,0.4385157]
[1754441554420,1.46145299,113900.0,113890.0,0.4385157]
[1754441556620,1.93705299,113900.0,113890.0,0.2629]
[1754441556833,0.1756156,113890.0,113880.0,0.3073353]
[1754441557130,0.84130829,113890.0,113880.0,0.2195237]
[1754441557431,0.84130829,113890.0,113880.0,0.2438437]
[1754441557732,0.66569269,113890.0,113880.0,0.2438437]
[1754441558532,0.66669269,113890.0,113880.0,0.2438437]
[1754441559030,0.84230829,113890.0,113880.0,0.2438437]
[1754441559232,0.84130829,113890.0,113880.0,0.2438437]
[1754441559531,0.66569269,113890.0,113880.0,0.2438437]
[1754441559728,0.3608,113890.0,113880.0,0.3372537]
[1754441560031,0.9804,113890.0,113880.0,0.3372537]
[1754441560729,0.3608,113890.0,113880.0,0.3372537]
[1754441560925,0.98032,113890.0,113880.0,0.3372537]
[1754441561733,0.98032,113890.0,113880.0,0.3382537]
[1754441562126,0.98028,113890.0,113880.0,0.3382537]
[1754441562533,0.3608,113890.0,113880.0,0.6011537]
[1754441562734,0.3608,113890.0,113880.0,0.90604639]
[1754441563031,0.9802,113890.0,113880.0,0.90604639]
[1754441563233,0.9802,113890.0,113880.0,0.6011537]
[1754441564332,0.3608,113890.0,113880.0,0.6011537]
[1754441564533,0.98016,113890.0,113880.0,0.6011537]
[1754441565734,1.28505269,113890.0,113880.0,0.5558137]
[1754441566626,1.28505269,113890.0,113880.0,0.5873937]
[1754441566830,0.98016,113890.0,113880.0,0.5873937]
[1754441567132,0.98016,113890.0,113880.0,0.6011537]
[1754441567432,0.98016,113890.0,113880.0,0.6001537]
[1754441567932,0.3608,113890.0,113880.0,0.6001537]
[1754441568136,0.98016,113890.0,113880.0,0.6001537]
[1754441568431,0.98016,113890.0,113880.0,0.6051537]
[1754441568631,0.3608,113890.0,113880.0,0.91004639]
[1754441569026,0.98016,113890.0,113880.0,0.90504639]
[1754441569228,0.98116,113890.0,113880.0,1.07020325]
[1754441570235,0.62036,113890.0,113880.0,1.43100325]
[1754441570632,0.001,113890.0,113880.0,1.42900325]
[1754441570834,0.98016,113910.0,113900.0,0.2933303]
[1754441571041,0.98016,113910.0,113900.0,0.59822299]
[1754441571533,0.98016,113910.0,113900.0,0.86112299]
[1754441571735,0.36241,113930.0,113920.0,0.04835]
[1754441571935,0.36241,113930.0,113920.0,0.59950209]
[1754441571936,0.98177,113930.0,113920.0,0.59950209]
[1754441572236,0.62097,113930.0,113920.0,0.59950209]
[1754441572428,0.62097,113930.0,113920.0,0.67147048]
[1754441572935,0.98177,113930.0,113920.0,0.36657779]
[1754441573833,0.62097,113930.0,113920.0,0.36657779]
[1754441574229,0.62097,113930.0,113920.0,0.67147048]